Cogmind - Beta 15 @@@ ROGUE MODE // 2025.10.15 @ 11:41:59 Player: shapeshifter Result: Destroyed by QY-ZT5(j) with Overtuned Pulse Rifle Performance ------------- Evolutions (0) 0 Regions Visited (5) 1000 Robots Destroyed (48) 240 Value Destroyed (1198) 1198 Prototype IDs (24) 480 Alien Tech Used (0) 0 Bonus (2300) 2300 TOTAL SCORE: 5218 Bonus ------- Delivered SUBCON Basin 2000 Registered with UFD 300 Cogmind --------- Core Integrity 0/250 Matter 280/300 Energy 242/290 System Corruption 0% Temperature Cool (12) Movement Treading (160) Location -7/Scraptown Parts ------- > --- POWER (1) -------- Improved Deuterium Engine > --- PROPULSION (2) --- Medium Treads Medium Treads > --- UTILITY (2) ------ Large Storage Unit Hardened Medium Armor Plating > --- WEAPON (2) ------- Junk Cannon > --- INVENTORY (15) --- Medium Treads High-capacity Storage Unit Huge Storage Unit Weapon Cycler Improved Utility Shielding Gun Armor A0-MCA's Component Scanner Tech Extrapolator Overtuned Barrage Gun CPS Tube (2) CPS Tube (2) CPS Tube (2) CPS Tube (2) Peak State ------------ > --- POWER ------------ Ion Engine > --- PROPULSION ------- Spiked Treads Spiked Treads > --- UTILITY ---------- Huge Storage Unit Hardened Light Armor Plating > --- WEAPON ----------- Subdweller Machine Gun Heavy Battle Rifle > --- INVENTORY -------- High-capacity Battery Gun Armor Scrap Shield Subdweller Machine Gun Rocket Launcher Subdweller Shrapnel Launcher SUBCON Basin [Rating: 34] Favorites ----------- Power Ion Engine Engine Ion Engine Propulsion Light Treads Treads Light Treads Wheel Subdweller Monowheel Utility Hardened Light Armor Plating Device Improved Heat Sink Storage Huge Storage Unit Hackware Hacking Suite Protection Hardened Light Armor Plating Weapon Subdweller Machine Gun Energy Gun Improved EM Shotgun Energy Cannon Light EM Pulse Cannon Ballistic Gun Subdweller Machine Gun Launcher Rocket Launcher Special Weapon Junk Cannon Impact Weapon Makeshift Hammer Build | -11 -10 -10 -10 -7 -7 ------- Run | Yrd Mat Min Sub Rec Scr Slots Evolved . | . . . . . . Power . | . . . . . . Propulsion . | . . . . . . Utility . | . . . . . . Weapon . | . . . . . . Parts Attached 57 | 8 15 . 20 . 14 Power 6 | 1 1 . 2 . 2 Engine 6 | 1 1 . 2 . 2 Core . | . . . . . . Reactor . | . . . . . . Propulsion 16 | 2 4 . 6 . 4 Treads 11 | 2 2 . 3 . 4 Leg . | . . . . . . Wheel 5 | . 2 . 3 . . Hover . | . . . . . . Flight . | . . . . . . Utility 16 | 3 5 . 5 . 3 Device 4 | 2 1 . . . 1 Storage 5 | 1 2 . 1 . 1 Processor . | . . . . . . Hackware 1 | . 1 . . . . Protection 6 | . 1 . 4 . 1 Artifact . | . . . . . . Weapon 19 | 2 5 . 7 . 5 Energy Gun 4 | . 3 . 1 . . Energy Cannon 3 | . 2 . 1 . . Ballistic Gun 6 | 2 . . 3 . 1 Ballistic Cannon . | . . . . . . Launcher 2 | . . . 2 . . Special Weapon 3 | . . . . . 3 Impact Weapon 1 | . . . . . 1 Slashing Weapon . | . . . . . . Piercing Weapon . | . . . . . . Special Melee Weapon . | . . . . . . Unidentified Prototypes 2 | . 1 . . . 1 Corrupted Parts 1 | . 1 . . . . System Corruption 5 | . 5 . . . . Parts Lost 3 | . 1 . 2 . . Power . | . . . . . . Propulsion 1 | . . . 1 . . Utility 1 | . . . 1 . . Weapon 1 | . 1 . . . . Highest Loss Streak 1 | . 1 . 1 . . To Critical Strikes . | . . . . . . Average Backups 8 | 4 12 14 7 8 10 Power . | . 1 1 . . . Propulsion . | 1 1 1 . . . Utility 4 | . 9 10 3 3 4 Weapon 2 | . 1 2 2 4 4 Tool/Special . | . . . . . . Unused Backups 22 | . 1 . 9 . 12 Power . | . . . . . . Propulsion . | . . . . . . Utility 13 | . . . 6 . 7 Weapon 7 | . 1 . 3 . 3 Tool/Special 2 | . . . . . 2 Average Slot Usage (%) 87 | . 98 100 88 91 71 Engine 13 | . 14 14 13 14 14 Treads 22 | . 27 28 23 . 13 Wheel 3 | . . . . 28 13 Device 1 | . 11 . . . . Storage 9 | . 14 14 7 14 14 Protection 10 | . 1 . 12 14 13 Energy Gun 2 | . 11 . . . . Energy Cannon 7 | . 14 28 7 . . Ballistic Gun 12 | . 1 . 19 20 . Peak Build Rating 34 | 9 15 13 34 32 33 Average Rating 17 | 5 13 13 20 29 14 On Entrance 12 | . 7 13 13 32 11 Naked Turns . | . . . . . . Heaviest Build 98 | 14 34 33 98 98 93 Greatest Support 56 | 40 40 40 40 20 56 Greatest Overweight (x) 5 | . 5 . 4 4 4 Average Overweight (x) . | . . . . 4 2 Largest Inventory Capacity 25 | 8 15 15 25 25 25 Average Capacity 15 | 6 13 15 13 25 20 Most Carried 25 | 6 15 15 25 25 16 Average Carried 12 | 4 12 14 13 23 11 Final Capacity 25 | 8 15 15 25 25 15 Final Carried 24 | 5 14 15 24 11 13 Class Distribution -------------------- 69% | Mutant 30% | Derelict-Mutant Dominant Class ---------------- Mutant | -10/Materials Mutant | -10/Mines Mutant | -10/Subcaves Mutant | -7/Recycling Mutant | -7/Scraptown Resources | -11 -10 -10 -10 -7 -7 ----------- Run | Yrd Mat Min Sub Rec Scr Matter Collected 1584 | 300 264 17 806 . 197 Remotely . | . . . . . . Salvage Created 1820 | 126 725 22 874 . 73 Parts 103 | 8 42 4 49 . . Haulers Intercepted 1 | . 1 . . . . Recyclers Shooed 1 | 1 . . . . . Parts Field Recycled . | . . . . . . Retrieved Matter . | . . . . . . Parts Self-Destructed 25 | . . . 25 . . Prevented 4 | . . . 4 . . Kills | -11 -10 -10 -10 -7 -7 ------- Run | Yrd Mat Min Sub Rec Scr Combat Hostiles Destroyed 34 | . 14 . 19 . 1 Guns 9 | . 7 . 2 . . Cannons 17 | . 3 . 13 . 1 AOE 5 | . 4 . 1 . . Classes Destroyed 14 | 3 6 . 4 . 1 Worker 2 | 1 1 . . . . Builder 4 | . 3 1 . . . Tunneler 1 | 1 . . . . . Hauler 1 | . 1 . . . . Recycler 1 | 1 . . . . . Operator 1 | . 1 . . . . Turret 2 | . . . 2 . . Watcher 2 | . 2 . . . . Swarmer 9 | . 3 . 6 . . Grunt 14 | . 11 . 3 . . Sentry 1 | . . . 1 . . Artisan 1 | . . . 1 . . Subdweller 9 | . . . 9 . . Bolteater 1 | . . . . . 1 Best Kill Streak 8 | 2 8 1 3 . 1 Combat Bots Only 5 | . 5 . 3 . 1 Max Kills in Single Turn 2 | 1 2 1 1 . 1 Gunslinging . | . . . . . . Exploded 1 | . 1 . 1 . . Melee . | . . . . . . Uniques/NPCs Destroyed . | . . . . . . Combat | -11 -10 -10 -10 -7 -7 -------- Run | Yrd Mat Min Sub Rec Scr Hostile Shots Fired 184 | . 45 . 104 . 35 Missed 58 | . 10 . 36 . 12 Hits 126 | . 35 . 68 . 23 Melee 3 | . . . . . 3 Projectile 123 | . 35 . 68 . 20 AOE 5 | . . . 5 . . Damage Taken 1743 | . 415 . 1150 . 178 Core 269 | . 80 . 135 . 54 Absorbed by Shields . | . . . . . . Core Remaining (%) 100 | 100 . . . . . Volleys Fired 169 | 6 31 1 129 . 2 Largest 2 | 2 2 2 2 . 1 Hottest 112 | 40 112 112 112 . . Shots Fired 304 | 12 63 2 224 1 2 Gun 157 | 12 50 . 94 1 . Cannon 144 | . 13 2 129 . . Launcher 1 | . . . 1 . . Special 2 | . . . . . 2 Kinetic 94 | 12 . . 81 1 . Thermal 13 | . . . 13 . . Explosive 1 | . . . 1 . . Electromagnetic 194 | . 63 2 129 . . Impact 2 | . . . . . 2 Robot Hit Streak 21 | 10 11 2 21 . 4 Robot Miss Streak 4 | . 4 . 4 . . Penetration Max . | . . . . . . Secondary Targets 2 | . 2 . . . . Max Gunslinging Chain 1 | . 1 . . . . Shots Hit Robots 153 | 10 52 1 88 . 2 Core Hits 74 | 5 33 1 35 . . Critical Kills 1 | . . . 1 . . Critical Parts Destroyed . | . . . . . . Critical Strikes 3 | . 1 . 2 . . Destroy 1 | . . . 1 . . Corrupt 2 | . 1 . 1 . . Melee Attacks 1 | . . . . . 1 Impact 1 | . . . . . 1 Slashing . | . . . . . . Piercing . | . . . . . . Sneak Attacks . | . . . . . . Combat Hostiles . | . . . . . . Follow-up Attacks . | . . . . . . Damage Inflicted 3533 | 102 1385 23 1796 . 227 Guns 1182 | 102 683 . 397 . . Cannons 1588 | . 272 23 1293 . . Explosions 536 | . 430 . 106 . . Melee . | . . . . . . Ramming . | . . . . . . Kinetic 442 | 102 . . 340 . . Thermal 593 | . 430 . 163 . . Explosive . | . . . . . . Electromagnetic 2271 | . 955 23 1293 . . Impact 227 | . . . . . 227 Slashing . | . . . . . . Piercing . | . . . . . . Highest Corruption 5 | . 5 5 5 5 5 Average Corruption 5 | . 5 5 5 5 5 Corruption Purged . | . . . . . . Corruption Blocked . | . . . . . . Effects 231 | . 41 6 177 5 2 Message Errors 50 | . 6 1 43 . . Matter Fused 61 | . 8 1 51 1 . Heat Flow Errors 25 | . 6 2 17 . . Energy Discharges 29 | . 9 1 18 1 . Parts Fused 2 | . 1 . 1 . . Data Loss (minor) 28 | . 5 1 21 1 . Data Loss (major) 18 | . 3 . 13 . 2 Misfires 14 | . 3 . 10 1 . Alerts 3 | . . . 2 1 . Weapon Failures 1 | . . . 1 . . Overload Shots . | . . . . . . Overflow Damage 155 | . 14 . . . 141 Projectiles 151 | . 10 . . . 141 Explosions 4 | . 4 . . . . Melee . | . . . . . . Knockbacks 2 | . . . . . 2 Impact 1 | . . . . . 1 Kinetic . | . . . . . . Secondary 1 | . . . . . 1 Self-Inflicted Damage 20 | . 20 . . . . Shots 1 | . 1 . . . . Rammed . | . . . . . . Targets Rammed . | . . . . . . Kicked . | . . . . . . Crushed . | . . . . . . Highest Temperature 410 | . 410 196 257 . 1 Average Temperature 85 | . 123 81 57 . 1 Received Heat Transfer 456 | . 174 . 234 . 48 Effects 6 | . 4 . 2 . . Shutdowns 1 | . 1 . . . . Energy Bleed 1 | . 1 . . . . Interference 2 | . . . 2 . . Matter Decay 1 | . 1 . . . . Short Circuit 1 | . 1 . . . . Siege Activations . | . . . . . . Martial Activations . | . . . . . . Shielding Activations . | . . . . . . Robots Disrupted . | . . . . . . Combat Hostiles . | . . . . . . Robots Corrupted 3 | . . . 3 . . Combat Hostiles 3 | . . . 3 . . Parts Fried 12 | . 4 1 6 . 1 Impact Corruptions 5 | . . . . . 5 Robots Melted . | . . . . . . Combat Hostiles . | . . . . . . Parts Melted . | . . . . . . Heat Transferred 675 | . 500 . 175 . . Parts Sabotaged . | . . . . . . Parts Stolen . | . . . . . . Parts Stripped . | . . . . . . Power Chain Reactions 10 | . 8 . 2 . . Alert | -11 -10 -10 -10 -7 -7 ------- Run | Yrd Mat Min Sub Rec Scr Maximum Alert Level . | . . . . . . Low Security (%) 100 | 100 100 100 . 100 . Level 1 . | . . . . . . Level 2 . | . . . . . . Level 3 . | . . . . . . Level 4 . | . . . . . . Level 5 . | . . . . . . High Security . | . . . . . . Max Security . | . . . . . . Peak Influence 163 | 5 163 34 . 98 . Initial 69 | . 3 34 . 69 . Average 45 | . 51 5 . 79 . Influence Increases 1076 | 15 550 5 425 81 . Destroy 0b10 Robot/C 520 | . 280 . 240 . . Destroy 0b10 Robot/NC 60 | 15 40 5 . . . Destroy Leader 106 | . 86 . 20 . . Successful Hack 41 | . 20 . . 21 . Select Force Hacks 120 | . 60 . . 60 . Disable Machine 30 | . 30 . . . . Destroy Structure 19 | . 19 . . . . Lose Combat Pursuer 180 | . 15 . 165 . . Influence Decreases 1076 | 10 467 93 280 156 70 Entered New Map 202 | . 2 54 . 76 70 Time Decay 854 | 10 455 39 270 80 . Lost Part 20 | . 10 . 10 . . Squads Dispatched 5 | . 5 . . . . Investigation 3 | . 3 . . . . Extermination . | . . . . . . Reinforcement 2 | . 2 . . . . Assault . | . . . . . . Garrison . | . . . . . . Intercept . | . . . . . . Searches Triggered . | . . . . . . Construction Impeded . | . . . . . . Haulers Reinforced . | . . . . . . Active Scanning Responses . | . . . . . . Cargo Convoy Interrupts . | . . . . . . Stealth | -11 -10 -10 -10 -7 -7 --------- Run | Yrd Mat Min Sub Rec Scr Distress Signals 1 | . 1 . . . . Communications Jammed . | . . . . . . Distress Signals . | . . . . . . Times Spotted 58 | . 20 . 31 . 7 Peak Tracking Total 9 | . 4 . 3 . 9 Tactical Retreats 5 | . 1 . 4 . . Traps | -11 -10 -10 -10 -7 -7 ------- Run | Yrd Mat Min Sub Rec Scr Traps Triggered 2 | . 1 . 1 . . Indirectly . | . . . . . . Trap Hack Attempts . | . . . . . . Triggered . | . . . . . . Disarmed . | . . . . . . Reprogrammed . | . . . . . . Reused . | . . . . . . Traps Extracted . | . . . . . . Installed . | . . . . . . Triggered . | . . . . . . Machines | -11 -10 -10 -10 -7 -7 ---------- Run | Yrd Mat Min Sub Rec Scr Machines Disabled 5 | . 2 . 2 . 1 Max in Single Turn 1 | . 1 . 1 . 1 Machines Repaired . | . . . . . . Machines Dismantled . | . . . . . . Machines Sabotaged . | . . . . . . Overloaded Fab Kills . | . . . . . . Hacking | -11 -10 -10 -10 -7 -7 --------- Run | Yrd Mat Min Sub Rec Scr Machines Accessed 19 | . 7 . 4 5 3 Terminals 8 | . 5 . . 3 . Fabricators . | . . . . . . Repair Stations . | . . . . . . Recycling Units 4 | . 2 . . 2 . Scanalyzers . | . . . . . . Garrison Access . | . . . . . . Total Hacks 59 | . 22 . 7 16 14 Successful 41 | . 15 . 7 5 14 Failed 18 | . 7 . . 11 . Catastrophic 3 | . . . . 3 . Database Lockouts . | . . . . . . Manual 30 | . 20 . . 10 . Terminals 29 | . 18 . . 11 . Fabricators . | . . . . . . Repair Stations . | . . . . . . Recycling Units 9 | . 4 . . 5 . Scanalyzers . | . . . . . . Garrison Access . | . . . . . . Terminal Hacks 24 | . 3 . 7 . 14 Record 12 | . . . 4 . 8 Robot Analysis 5 | . . . . . 5 Prototype ID Bank 2 | . 2 . . . . Open Door 1 | . . . 1 . . Zone Layout 1 | . 1 . . . . Proto ID Catalog 2 | . . . 1 . 1 Release Object 1 | . . . 1 . . Fabricator Hacks . | . . . . . . Repair Station Hacks . | . . . . . . Recycling Unit Hacks 1 | . 1 . . . . Retrieve Components 1 | . 1 . . . . Scanalyzer . | . . . . . . Garrison Access Hacks . | . . . . . . Unauthorized Hacks 16 | . 11 . . 5 . Terminals 12 | . 9 . . 3 . Botnet 5 | . 4 . . 1 . Skim 7 | . 5 . . 2 . Fabricators . | . . . . . . Repair Stations . | . . . . . . Recycling Units 4 | . 2 . . 2 . Tunnel 4 | . 2 . . 2 . Scanalyzers . | . . . . . . Garrison Access . | . . . . . . Data Cores Recovered . | . . . . . . Used . | . . . . . . Hacking Detections 10 | . 5 . . 5 . Full Trace Events 2 | . . . . 2 . Feedback Events . | . . . . . . Feedback Blocked . | . . . . . . Robot Schematics Acquired . | . . . . . . Robots Built . | . . . . . . Authchips . | . . . . . . Time . | . . . . . . Total Robot Build Rating . | . . . . . . Part Schematics Acquired 1 | . . . . . 1 Parts Built . | . . . . . . Authchips . | . . . . . . Time . | . . . . . . Total Part Build Rating . | . . . . . . Parts Repaired . | . . . . . . Time . | . . . . . . Parts Recycled . | . . . . . . Recycled Matter . | . . . . . . Retrieved Matter . | . . . . . . Retrieved Components 9 | . 9 . . . . Parts Scanalyzed . | . . . . . . Part Schematics Acquired . | . . . . . . Parts Damaged . | . . . . . . Bothacking | -11 -10 -10 -10 -7 -7 ------------ Run | Yrd Mat Min Sub Rec Scr Used RIF Installer . | . . . . . . Robots Hacked . | . . . . . . Non-combat . | . . . . . . Combat . | . . . . . . Robot Hacks Applied . | . . . . . . Relay Couplers Released . | . . . . . . Fabnet Peak Effective % . | . . . . . . Robots Rewired . | . . . . . . Allies Hacked . | . . . . . . Hacks Repelled . | . . . . . . Allies | -11 -10 -10 -10 -7 -7 -------- Run | Yrd Mat Min Sub Rec Scr Total Allies . | . . . . . . Largest Group . | . . . . . . Highest-Rated Group . | . . . . . . Highest-Rated Ally . | . . . . . . Total Orders . | . . . . . . Ally Attacks . | . . . . . . Total Damage . | . . . . . . Kills . | . . . . . . Allies Corrupted . | . . . . . . Allies Melted . | . . . . . . Intel | -11 -10 -10 -10 -7 -7 ------- Run | Yrd Mat Min Sub Rec Scr Active Infowar (turns) 109 | 46 63 . . . . Terrain 15 | 15 . . . . . Seismic 94 | 31 63 . . . . Robot Analysis Total 5 | . . . . . 5 Derelict Logs Recovered 8 | . . 1 2 . 5 Drone Launches . | . . . . . . Drone Recoveries . | . . . . . . Exploration | -11 -10 -10 -10 -7 -7 ------------- Run | Yrd Mat Min Sub Rec Scr Turns Passed 10897 | 103 1766 262 6673 173 1920 Spaces Moved 5254 | 53 790 144 2955 109 1203 Core 17 | 15 2 . . . . Treads 4274 | 38 772 144 2751 . 569 Legs . | . . . . . . Wheels 963 | . 16 . 204 109 634 Hover . | . . . . . . Flight . | . . . . . . Fastest Speed 50 | 50 90 160 130 150 150 Average Speed 185 | 128 158 160 209 150 154 Slowest Speed 560 | 160 300 160 560 150 160 Overloaded Moves . | . . . . . . Propulsion Burnouts . | . . . . . . Robots Hopped . | . . . . . . Potential Cave-ins . | . . . . . . Cave-ins Triggered . | . . . . . . Exploration Rate (%) 56 | 5 83 48 88 29 83 Regions Visited 5 Branch Regions 4 Pre-discovered Areas 6 | . 3 . . 2 1 Known Exits Taken 2 | . . 1 . 1 . Unknown Exits Taken 3 | 1 1 . 1 . . Scrap Searched 16 | . . 1 10 . 5 Spaces Dug 1 | . . . 1 . . Terrain Destroyed 38 | . 20 . 18 . . Melee . | . . . . . . Projectile 1 | . . . 1 . . AOE 37 | . 20 . 17 . . Terrain Rammed . | . . . . . . Walls Destroyed . | . . . . . . Machines Disabled . | . . . . . . Actions | -11 -10 -10 -10 -7 -7 --------- Run | Yrd Mat Min Sub Rec Scr Total 6107 | 76 1242 174 3228 121 1266 Wait 465 | . 372 29 56 8 . Move 5249 | 52 789 143 2954 108 1203 Hop . | . . . . . . Pick Up 75 | 9 16 1 26 1 22 Fast Attach 21 | 3 11 . 7 . . Attach 29 | 5 3 . 10 . 11 Detach 8 | 1 . . 1 2 4 Swap 18 | . 4 . 8 . 6 Drop 64 | . 16 . 29 2 17 Fire 169 | 6 31 1 129 . 2 Melee 1 | . . . . . 1 Ram . | . . . . . . Kick . | . . . . . . Crush . | . . . . . . Escape Stasis . | . . . . . . Rewire . | . . . . . . Trap . | . . . . . . Miscellaneous 8 | . . . 8 . . Route ------- -11/Scrapyard -10/Materials (discovered 5 exits: *Mat x3 / [*Min] / *Sub) -10/Mines (discovered 2 exits: *Mat / *Sub) -10/Subcaves (discovered 2 exits: [*Mat] / *Rec) -7/Recycling (discovered 2 exits: Fac / *Scr) -7/Scraptown (discovered 1 exit: *Fac) History --------- Turn | Location | Event 12 | -11/Scrapyard | Discovered new exit (range 15) 104 | -11/Scrapyard | Entered Materials 305 | -10/Materials | Build established: Mutant 392 | -10/Materials | Discovered new exit (range 8) 465 | -10/Materials | Discovered new exit (range 19) 1097 | -10/Materials | Discovered new exit (range 6) 1287 | -10/Materials | Loaded intel: 6 trap records 1355 | -10/Materials | Learned 4 Recycling zone layouts 1463 | -10/Materials | Learned location of 1 exit from Recycling 1501 | -10/Materials | Identified exit to Materials 1529 | -10/Materials | Learned 2 Mines zone layouts 1567 | -10/Materials | Learned location of 1 exit from Recycling 1615 | -10/Materials | Learned location of 3 exits from Materials 1673 | -10/Materials | Learned location of 2 exits from Mines 1743 | -10/Materials | Learned Storage stockpile data 1870 | -10/Materials | Entered Mines 1871 | -10/Mines | Identified exit to Subcaves 1877 | -10/Mines | Received a Rocket Launcher from a helpful Derelict 1878 | -10/Mines | Met a Derelict bent on vengeance 1936 | -10/Mines | Learned Materials stockpile data 2044 | -10/Mines | Assembled infested the area 2132 | -10/Mines | Entered Subcaves 2133 | -10/Subcaves | Approached by a straggling Scientist 2409 | -10/Subcaves | Ambushed by angry Subdweller bent on revenge 2591 | -10/Subcaves | Core integrity fell below 50% 2594 | -10/Subcaves | Ambushed by Subdweller buried in earth 3012 | -10/Subcaves | Learned Materials stockpile data 3251 | -10/Subcaves | Ambushed by Subdwellers from Twisted Machinery 3252 | -10/Subcaves | A swath of the cavern ceiling suddenly collapsed 3264 | -10/Subcaves | Shifting Twisted Machinery released Spk. Treads 3431 | -10/Subcaves | Shifting Twisted Machinery released Sub. Laser 3536 | -10/Subcaves | Visited 4L-MR0's lab 3797 | -10/Subcaves | Disturbed a concealed Subdweller 3803 | -10/Subcaves | Disturbed a concealed Subdweller 3815 | -10/Subcaves | Core integrity fell below 20% 4138 | -10/Subcaves | Discovered new exit (range 9) 4265 | -10/Subcaves | Build established: Derelict-Mutant 4348 | -10/Subcaves | A swath of the cavern ceiling suddenly collapsed 4405 | -10/Subcaves | Learned Materials trap positions 4725 | -10/Subcaves | Visited Clippyterm 4730 | -10/Subcaves | Learned Research machine intel 4859 | -10/Subcaves | Found Gun Armor 5833 | -10/Subcaves | Discovered new exit (range 13) 6257 | -10/Subcaves | Found SUBCON Basin 7244 | -10/Subcaves | Build established: Mutant 8805 | -10/Subcaves | Entered Recycling 8806 | -7/Recycling | Identified exit to Factory 8806 | -7/Recycling | Identified exit to Scraptown 8931 | -7/Recycling | Scanned before Scraplab entrance 8952 | -7/Recycling | Entered Scraplab 8978 | -7/Recycling | Entered Scraptown 9089 | -7/Scraptown | Scanned Subdweller tech in exchange for log data 9092 | -7/Scraptown | Learned location of Armory (-4) 9094 | -7/Scraptown | Learned location of 1 exit from Factory 9095 | -7/Scraptown | Learned Factory security intel 9098 | -7/Scraptown | Learned location of 1 exit from Upper Caves 9118 | -7/Scraptown | Discovered exit to Factory (range 7) 9131 | -7/Scraptown | System corruption cleaned by C-Scrubber 9243 | -7/Scraptown | Visited Assassins FH 9252 | -7/Scraptown | Visited Comm Corps 9270 | -7/Scraptown | Visited IN-MT5's Study 9317 | -7/Scraptown | Visited Symbiants 9329 | -7/Scraptown | Visited The Evicted 9766 | -7/Scraptown | Visited UFD Registry 9766 | -7/Scraptown | Registered with UFD as "Flashranger" 9803 | -7/Scraptown | Visited Analyses Database 9837 | -7/Scraptown | Visited Curators Association 9858 | -7/Scraptown | Visited LU-1G1's Boring Crew 9898 | -7/Scraptown | Delivered Scrap Shield to a Scientist 10009 | -7/Scraptown | Visited A0-MCA Data Center 10030 | -7/Scraptown | Visited DA-N13 Charitable Foundation 10036 | -7/Scraptown | Found DCF Scrap (29 items) 10078 | -7/Scraptown | Visited Junk Repository 10112 | -7/Scraptown | Visited Science Guys 10164 | -7/Scraptown | Visited Chapter 10 10190 | -7/Scraptown | Visited Scrap Suit Storage 10216 | -7/Scraptown | Visited Junk Cannon Lab 10224 | -7/Scraptown | Found Prototype Special Weapon 10226 | -7/Scraptown | Identified Junk Cannon 10349 | -7/Scraptown | Visited Cyclists 10360 | -7/Scraptown | Entered Cyclist Reading Room 10557 | -7/Scraptown | Given a B rating by A0-MCA 10560 | -7/Scraptown | Found A0-MCA's Component Scanner 10863 | -7/Scraptown | Attacked by Scraptown defenders 10894 | -7/Scraptown | Build established: Derelict-Mutant 10898 | -7/Scraptown | Destroyed by QY-ZT5(j) with Overtuned Pulse Rifle Last Messages --------------- 10866_ Extracted schematic archive: IN-MT5's Pitchfork "Insurrection". 10871_ Dropped Mak. Hammer. 10872_ Acquired Junk Cannon. 10884_ Penetrated by Bolt. 10886_ 7X-J1R(h): "0b10-spawn!" 10886_ Penetrated by Bolt. 10887_ Bolt penetrates QY-ZT5(j). 10889_ Penetrated by Bolt. 10894_ Destroyed Unknown Device. 10894_ SK-G6H(r) system corrupted by crushing effect. 10894_ SK-G6H(r) knocked back. 10894_ Destroyed Wheel. 10894_ W3-QAA(r) system corrupted by crushing effect. 10895_ Bolt penetrates Wall. 10896_ Destroyed Ripteeth. 10896_ Destroyed Wheel. 10896_ SK-G6H(r) system corrupted by crushing effect. 10896_ Sml. Storage Unit fried. 10896_ SK-G6H(r) destroyed. 10898_ W3-QAA(r) follow-up attacks with Ripteeth. Map ----- +----------------------------------------------------+ | ### #?#" "#" ?? "?????????????????????? | | ??# #?#" """ "?????????????????????? | | ??# #?#" "#" "" "#????????????????????? | | ??# #?#" """ "#" " "#????????????????????? | | ?## ###" "#" "#????????????????????? | | ## ##"""""" ""#"" """"""#????????????????????? | | #????????????????????? | | #????????????????????? | | #????????????????????? | | ## ##########"" """"#####????????????????????? | | ?## ##????????#" "#????????????????????????? | | ??# #########?#" ""#????????????????????????? | | ??# """"""""#?#" """#????????????????????????? | | ### " ""#?#" """#????????????????????????? | | """ "#?#"""""""#????????????????????????? | | """ " ""#?#########??????????????????######? | | " """"""""#???????????????????????????#""""""# | | ##"""####???????????????????????????#""""""# | | " " ###########??????#########??????????#" ""# | | " #?# ????###"""""""#??????????#" ""# | | """ #?# ##??# /" k"#??????????#" ""# | | ### ##" "#??###" k"#??????????#" ""# | | ??# ##""""""""""##?# " ""#??????????#" "# | | ### #" "#?# " """#?????##"###" """# | | #? "#?#k " ""#?????# # | | #??? "#?# "@r k"#?????# # | | ### #????? #?#""" % "#?????# # | | ?# #??????? ??# #?????######## #### | | ### ########## #########;# ####???????##### #### | | # #???????#"""" """" | | # j #???????#" | | # #???????#" | | #???????#" | | # #???????#" | | # ############ #### g #???#####" | | # #????????? ?# #???#"""" """ | | # #??????? "# #???#"""" """ | | # #??????###### "# #???#"""" ""# | | # #????????????" "# #???#"""" ""# | | # #????????????" "# #???#"""" ""# | | # #???????????? "# ###?#"""" ""# | | # #???????????? "# ""#"#"""" ""# | | # #???????????? "# """"#"""" ""# | | # #????????????"""# ""#######" "" | | # #??????????????## ###?????#" "" | | # #???????????????# #########" ""# | | # #???????????????# ""# | | # #???????????????# ""# | | # #???????????????# ""# | | # #???????????????# ""# | +----------------------------------------------------+ Best States ------------- Heat Dissipation 39 Energy Generation 16 Energy Capacity 290 Matter Stores 300 Matter Capacity 300 Sight Range 16 Terrain Scan Range 16 Terrain Scan Density 10 Additional Mass Support 9 Armor Coverage 800 Evasion (%) 50 Recoil Reduction 2 Offensive Hacking 10 Item Schematics ----------------- IN-MT5's Pitchfork "Insurrection" | -7/Scraptown | Archive Robot Schematics ------------------ None Fabricated ------------ Nothing Repaired ---------- Nothing Alien Tech Used ----------------- None Achievements -------------- None Challenges ------------ None Game ------ Seed MicroLinkedMiniperforator Manual? 0 Play Time 00:34:45 Cumulative 383.7 hours Start 2025.10.15 @ 11:09:28 End 2025.10.15 @ 11:41:59 Sessions 1 Manual Loads 0 Difficulty Rogue Special Mode None Game No. 503 Rogue 503 Adventurer 0 Explorer 0 Win Type - Total 11 Types 6/0/1/2/1/0/1/0/0/0 Lore% 88 Gallery% 83 Achievement% 70 Wizard Run 0 Options --------- Layout 0 ASCII 0 Keyboard 0 Movement Mouse Keybinds 0 Fullscreen 1 Font 24/Tamsyn Map View 76x50 Zoom Use 0% Tactical HUD 1 Map Filters NONE Filters NONE Steam 1 RUN: 913075bd-14e2-4098-93a8-ca68c6fb8dd5